bitfinex/quotes_SOLUSD_20250508
["timestamp","ask_amount","ask_price","bid_price","bid_amount"]
[1746723076590,14.98319974,160.3,160.26,14.98319974]
[1746723076789,14.98319974,160.3,160.26,21.22303369]
[1746723076989,21.22142438,160.31,160.26,6.23983395]
[1746723077189,6.23760286,160.32,160.27,14.98319974]
[1746723077504,133.1856121,160.33,160.29,14.98319974]
[1746723077696,148.16881184,160.33,160.29,14.98319974]
[1746723078009,133.1856121,160.33,160.29,14.98319974]
[1746723078183,133.1856121,160.33,160.3,14.98319974]
[1746723079417,148.16881184,160.33,160.26,15.59965056]
[1746723079715,148.16881184,160.33,160.29,14.98319974]
[1746723079880,133.1856121,160.33,160.27,47.83814812]
[1746723080208,133.1856121,160.33,160.31,14.98319974]
[1746723080700,133.1856121,160.33,160.31,21.2207847]
[1746723081407,133.1856121,160.33,160.32,14.98319974]
[1746723081610,133.1856121,160.33,160.28,6.2390816]
[1746723081996,133.1856121,160.33,160.29,14.98319974]
[1746723081997,148.16881184,160.33,160.29,14.98319974]
[1746723082707,154.40598069,160.33,160.29,14.98319974]
[1746723082897,14.98319974,160.32,160.27,26.0]
[1746723083106,139.42278095,160.33,160.28,14.98319974]
[1746723083414,14.98319974,160.29,160.22,1.6303]
[1746723083593,14.98319974,160.29,160.24,40.98319974]
[1746723083793,14.98319974,160.31,160.24,26.0]
[1746723083980,148.16881184,160.32,160.27,14.98319974]
[1746723084181,148.16881184,160.31,160.27,14.98319974]
[1746723084605,133.1856121,160.31,160.27,14.98319974]
[1746723084813,148.16881184,160.31,160.27,14.98319974]
[1746723085685,154.40675557,160.31,160.26,14.98319974]
[1746723085882,14.98319974,160.3,160.25,14.98319974]
[1746723086283,14.98319974,160.29,160.25,14.98319974]
[1746723086901,6.23847799,160.3,160.25,21.22329684]
[1746723087109,21.22167773,160.3,160.25,21.22329684]
[1746723087315,21.22167773,160.3,160.25,14.98319974]
[1746723087489,6.23847799,160.3,160.25,14.98319974]
[1746723087685,14.98319974,160.29,160.25,14.98319974]
[1746723088118,14.98319974,160.29,160.24,6.24054389]
[1746723088300,21.22203232,160.29,160.24,6.24054389]
[1746723088500,21.22203232,160.29,160.25,14.98319974]
[1746723089719,6.23883258,160.29,160.23,47.22418735]
[1746723090013,14.98319974,160.28,160.23,40.98319974]
[1746723090215,14.98319974,160.27,160.23,26.0]
[1746723090902,21.22268294,160.27,160.22,21.22451671]
[1746723091211,21.22268294,160.27,160.21,32.24169474]
[1746723091212,14.98319974,160.26,160.21,32.24169474]
[1746723091417,14.98319974,160.24,160.19,26.0]
[1746723091618,14.98319974,160.25,160.2,14.98319974]
[1746723092120,133.1856121,160.26,160.21,14.98319974]
[1746723092495,148.16881184,160.26,160.22,14.98319974]
[1746723093011,154.40879796,160.26,160.22,14.98319974]
[1746723093718,133.1856121,160.26,160.22,21.22452312]
[1746723093897,154.40870376,160.26,160.21,6.24165586]
[1746723094216,154.40870376,160.26,160.22,14.98319974]
[1746723094596,154.40870376,160.26,160.21,21.2248556]
[1746723094894,21.22383878,160.24,160.19,47.22571347]
[1746723095412,21.22383878,160.24,160.19,14.98319974]
[1746723096103,6.24063904,160.24,160.2,14.98319974]
[1746723096299,133.1856121,160.25,160.2,14.98319974]
[1746723096599,148.16881184,160.25,160.21,14.98319974]
[1746723097916,14.98319974,160.24,160.18,6.24297665]
[1746723098105,14.98319974,160.24,160.19,14.98319974]
[1746723098715,14.98319974,160.24,160.18,6.24297665]
[1746723098912,14.98319974,160.22,160.17,21.22640348]
[1746723099306,148.16881184,160.23,160.18,14.98319974]
[1746723100418,14.98319974,160.22,160.16,12.85273027]
[1746723100620,14.98319974,160.22,160.17,14.98319974]
[1746723100917,21.22476785,160.22,160.16,12.85273027]
[1746723101125,21.22476785,160.22,160.17,14.98319974]
[1746723101814,133.1856121,160.23,160.19,14.98319974]
[1746723102018,1.6418,160.3,160.22,14.98319974]
[1746723102330,1.6418,160.3,160.25,14.98319974]
[1746723102503,16.62499974,160.3,160.25,14.98319974]
[1746723102699,14.98319974,160.29,160.24,14.98319974]
[1746723102906,14.98319974,160.28,160.23,14.98319974]
[1746723103115,14.98319974,160.26,160.21,14.98319974]
[1746723103314,6.23875599,160.29,160.21,14.98319974]
[1746723103519,18.64964886,160.28,160.21,14.98319974]
[1746723103718,14.98319974,160.26,160.21,14.98319974]
[1746723104324,18.64964886,160.28,160.22,14.98319974]
[1746723104520,14.98319974,160.27,160.22,14.98319974]
[1746723104727,14.98319974,160.26,160.2,6.24219725]
[1746723105028,6.2395972,160.27,160.22,14.98319974]
[1746723105213,24.888808,160.28,160.2,6.24219725]
[1746723105414,14.98319974,160.26,160.21,14.98319974]
[1746723106230,16.26,160.29,160.25,14.98319974]
[1746723106536,26.64392627,160.32,160.27,14.98319974]
[1746723106743,14.98319974,160.31,160.26,14.98319974]
[1746723107035,21.22120742,160.31,160.26,14.98319974]
[1746723107332,17.89835282,160.32,160.26,21.22298261]
[1746723107536,14.98319974,160.31,160.26,21.22298261]
[1746723107721,23.9319329,160.3,160.25,23.9319329]
[1746723108037,17.89835282,160.32,160.26,23.9319329]
[1746723108242,11.66072653,160.32,160.27,23.9319329]
[1746723108422,23.9319329,160.31,160.24,21.84223664]
[1746723108618,23.9319329,160.31,160.26,23.9319329]
[1746723108824,23.9319329,160.28,160.24,6.24063904]
[1746723109027,23.9319329,160.28,160.24,30.17257194]
[1746723109517,6.23875723,160.29,160.24,30.17257194]
[1746723109713,30.17069013,160.29,160.24,23.9319329]
[1746723110432,30.17069013,160.29,160.24,30.17249534]
[1746723110813,23.9319329,160.31,160.26,23.9319329]
[1746723111516,23.9319329,160.31,160.26,30.17166425]
[1746723111724,133.1856121,160.3,160.26,30.17166425]
[1746723112730,157.117545,160.3,160.26,30.17166425]
[1746723113127,163.35597868,160.3,160.26,23.9319329]
[1746723113323,163.35597868,160.3,160.25,30.17209836]
[1746723114747,133.1856121,160.29,160.23,6.24102852]
[1746723115042,157.117545,160.29,160.25,23.9319329]
[1746723115213,133.1856121,160.29,160.25,23.9319329]
[1746723115917,133.1856121,160.29,160.25,30.17212004]
[1746723116252,23.9319329,160.28,160.22,26.0]
[1746723116543,139.42437032,160.29,160.22,26.0]
[1746723116544,163.35630322,160.29,160.24,23.9319329]
[1746723117642,163.35630322,160.29,160.22,26.0]
[1746723117824,133.1856121,160.28,160.24,23.9319329]
[1746723118541,163.35664895,160.28,160.23,30.17281962]
[1746723119431,133.1856121,160.28,160.24,23.9319329]
[1746723119929,157.117545,160.28,160.24,23.9319329]
[1746723120536,163.35665985,160.28,160.24,23.9319329]
[1746723121134,157.117545,160.28,160.24,23.9319329]
[1746723121440,157.117545,160.28,160.15,92.3]
[1746723121441,23.9319329,160.25,160.19,6.24244379]
[1746723121645,23.9319329,160.22,160.19,6.24244379]
[1746723121939,30.17300885,160.23,160.18,30.17478039]
[1746723122249,6.24070886,160.24,160.2,23.9319329]
[1746723122544,30.17264176,160.24,160.2,23.9319329]
[1746723123226,157.117545,160.25,160.2,23.9319329]
[1746723123427,133.1856121,160.25,160.21,23.9319329]
[1746723123743,133.1856121,160.25,160.22,23.9319329]
[1746723124116,133.1856121,160.25,160.23,23.9319329]
[1746723124449,133.1856121,160.25,160.24,23.9319329]
[1746723124922,133.1856121,160.25,160.23,23.9319329]
[1746723125151,133.1856121,160.25,160.24,23.9319329]
[1746723125447,133.1856121,160.25,160.23,23.9319329]
[1746723125660,133.1856121,160.25,160.22,23.9319329]
[1746723125847,163.35784712,160.25,160.19,1.5805]
[1746723126159,139.42591422,160.25,160.19,23.9319329]
[1746723126458,23.9319329,160.23,160.18,30.17453163]
[1746723126655,23.9319329,160.23,160.18,23.9319329]
[1746723126833,23.9319329,160.22,160.18,23.9319329]
[1746723128056,30.17323301,160.23,160.18,23.9319329]
[1746723128532,6.24130011,160.23,160.19,23.9319329]
[1746723128831,30.17323301,160.23,160.19,23.9319329]
[1746723129552,30.17323301,160.23,160.18,23.9319329]
[1746723129756,23.9319329,160.22,160.17,32.24320485]
[1746723129962,30.17323301,160.23,160.18,23.9319329]
[1746723130131,30.17323301,160.23,160.17,32.24320485]
[1746723130132,30.17323301,160.23,160.19,23.9319329]
[1746723130857,30.17323301,160.23,160.18,23.9319329]
[1746723131055,157.117545,160.22,160.17,49.9319329]
[1746723131529,23.9319329,160.2,160.15,7.5491]
[1746723131732,23.9319329,160.17,160.12,6.24531601]
[1746723132038,133.1856121,160.19,160.14,23.9319329]
[1746723132252,133.1856121,160.19,160.15,23.9319329]
[1746723132755,133.1856121,160.19,160.12,6.24531601]
[1746723132756,23.9319329,160.18,160.12,6.24531601]
[1746723132943,30.17505796,160.18,160.13,23.9319329]
[1746723133262,163.36023513,160.19,160.15,23.9319329]
[1746723135257,163.36023513,160.19,160.14,23.9319329]
[1746723135639,133.1856121,160.19,160.15,23.9319329]
[1746723135839,139.42827772,160.19,160.15,23.9319329]
[1746723136040,163.36021062,160.19,160.14,23.9319329]
[1746723136565,163.36021062,160.19,160.13,6.24482288]
[1746723136766,30.1749432,160.18,160.13,30.17675578]
[1746723137059,23.9319329,160.18,160.13,30.17675578]
[1746723137246,157.117545,160.19,160.14,23.9319329]
[1746723138065,163.36025486,160.19,160.14,23.9319329]
[1746723138249,133.1856121,160.19,160.13,6.24482288]
[1746723138448,133.1856121,160.19,160.16,23.9319329]
[1746723138648,133.1856121,160.19,160.12,6.24520042]
[1746723138649,23.9319329,160.18,160.12,6.24520042]
[1746723138961,163.3608992,160.18,160.13,23.9319329]
[1746723139548,163.3608992,160.18,160.11,32.24558845]
[1746723139549,23.9319329,160.17,160.11,32.24558845]
[1746723139744,14.98171811,160.17,160.11,32.24558845]
[1746723139944,14.98171811,160.17,160.12,14.98171811]
[1746723140855,154.41068441,160.18,160.13,14.98171811]
[1746723142048,154.41068441,160.18,160.12,6.24525697]
[1746723142253,14.98171811,160.17,160.13,14.98171811]
[1746723142442,14.98171811,160.16,160.11,47.22730566]
[1746723142650,14.98171811,160.17,160.12,14.98171811]
[1746723142874,21.22530751,160.17,160.11,32.24558755]
[1746723143045,21.22530751,160.17,160.12,14.98171811]
[1746723143465,14.98171811,160.16,160.12,14.98171811]
[1746723143661,14.98171811,160.16,160.11,6.24567258]
[1746723143863,14.98171811,160.16,160.11,21.22739069]
[1746723144564,14.98171811,160.16,160.12,14.98171811]
[1746723144749,154.41119239,160.16,160.12,14.98171811]
[1746723144946,154.41119239,160.16,160.1,6.24607448]
[1746723145150,14.98171811,160.15,160.11,14.98171811]
[1746723145750,154.41119239,160.16,160.11,14.98171811]
[1746723146265,139.42947428,160.16,160.12,14.98171811]
[1746723148447,133.1856121,160.16,160.14,14.98171811]
[1746723148651,133.1856121,160.16,160.15,14.98171811]
[1746723149679,133.1856121,160.16,160.14,14.98171811]
[1746723150550,133.1856121,160.16,160.13,6.24473702]
[1746723150757,133.1856121,160.16,160.13,21.22645513]
[1746723151071,133.1856121,160.16,160.14,14.98171811]
[1746723151791,133.1856121,160.16,160.13,14.98171811]
[1746723152258,133.1856121,160.16,160.14,14.98171811]
[1746723152659,133.1856121,160.16,160.13,14.98171811]
[1746723154474,133.1856121,160.16,160.1,6.24609618]
[1746723154672,133.1856121,160.16,160.14,14.98171811]
[1746723154883,133.1856121,160.16,160.12,26.0]
[1746723154884,133.1856121,160.21,160.15,40.98171811]
[1746723155189,133.1856121,160.21,160.19,14.98171811]
[1746723155350,133.1856121,160.21,160.2,14.98171811]
[1746723155759,133.1856121,160.21,160.15,26.0]
[1746723155959,133.1856121,160.21,160.19,14.98171811]
[1746723156173,133.1856121,160.21,160.15,26.0]
[1746723156375,133.1856121,160.21,160.2,14.98171811]
[1746723158282,133.1856121,160.28,160.2,40.98171811]
[1746723158487,133.1856121,160.28,160.24,14.98171811]
[1746723159475,148.16733021,160.28,160.24,14.98171811]
[1746723160679,133.1856121,160.28,160.24,14.98171811]
[1746723161277,148.16733021,160.28,160.2,26.0]
[1746723161483,148.16733021,160.27,160.22,14.98171811]
[1746723161889,157.12636444,160.27,160.22,23.94075234]
[1746723162378,157.12636444,160.27,160.2,26.0]
[1746723162582,157.12636444,160.27,160.23,23.94075234]
[1746723162774,133.1856121,160.27,160.23,23.94075234]
[1746723163186,157.12636444,160.27,160.23,23.94075234]
[1746723164676,157.12636444,160.27,160.24,23.94075234]
[1746723164677,133.1856121,160.27,160.24,23.94075234]
[1746723164881,157.12636444,160.27,160.23,23.94075234]
[1746723165187,157.12636444,160.27,160.2,26.0]
[1746723165372,157.12636444,160.27,160.22,23.94075234]
[1746723165572,133.1856121,160.27,160.22,23.94075234]
[1746723165872,157.12636444,160.27,160.22,23.94075234]
[1746723166289,157.12636444,160.27,160.2,26.0]
[1746723166290,23.94075234,160.26,160.2,26.0]
[1746723166484,23.94075234,160.25,160.2,49.94075234]
[1746723166809,23.94075234,160.24,160.2,26.0]
[1746723166985,23.94075234,160.25,160.21,23.94075234]
[1746723167189,42.5904012,160.26,160.21,23.94075234]
[1746723168093,133.1856121,160.27,160.22,23.94075234]
[1746723168382,133.1856121,160.27,160.23,23.94075234]
[1746723168885,133.1856121,160.27,160.24,23.94075234]
[1746723169299,133.1856121,160.27,160.23,23.94075234]
[1746723170997,133.1856121,160.27,160.21,6.1174]
[1746723171185,157.12636444,160.27,160.23,23.94075234]
[1746723171384,157.12636444,160.27,160.2,26.0]
[1746723171604,157.12636444,160.27,160.22,23.94075234]
[1746723173702,157.12636444,160.27,160.2,26.0]
[1746723173887,157.12636444,160.27,160.22,23.94075234]
[1746723174605,23.94075234,160.26,160.21,23.94075234]
[1746723174988,157.12636444,160.27,160.22,23.94075234]
[1746723175189,23.94075234,160.26,160.21,23.94075234]
[1746723175789,157.12636444,160.27,160.22,23.94075234]
[1746723177605,23.94075234,160.25,160.19,26.0]
[1746723177793,157.12636444,160.24,160.19,26.0]
[1746723177978,157.12636444,160.24,160.19,23.94075234]
[1746723178179,23.94075234,160.23,160.17,1.5448]
[1746723178386,23.94075234,160.23,160.18,23.94075234]
[1746723179613,23.94075234,160.22,160.17,23.94075234]
[1746723180310,133.1856121,160.24,160.16,49.94075234]
[1746723180311,23.94075234,160.21,160.16,49.94075234]
[1746723180906,23.94075234,160.21,160.16,23.94075234]
[1746723181497,23.94075234,160.2,160.15,26.0]
[1746723181698,23.94075234,160.18,160.12,6.6391]
[1746723181891,23.94075234,160.17,160.09,1.613]
[1746723182096,23.94075234,160.16,160.09,1.613]
[1746723182309,23.94075234,160.17,160.12,23.94075234]
[1746723182498,23.94075234,160.18,160.13,23.94075234]
[1746723182807,174.94086444,160.19,160.14,23.94075234]
[1746723183102,151.0001121,160.19,160.11,26.0]
[1746723183309,174.94086444,160.19,160.14,23.94075234]
[1746723183696,23.94075234,160.16,160.11,26.0]
[1746723183898,11.67201462,160.17,160.12,14.9838508]
[1746723184099,26.65586542,160.17,160.12,14.9838508]
[1746723184414,26.65586542,160.17,160.13,14.9838508]
[1746723185012,11.67201462,160.17,160.13,14.9838508]
[1746723186012,11.67201462,160.17,160.16,14.9838508]
[1746723186899,1.6498,160.23,160.16,14.9838508]
[1746723187086,133.1856121,160.22,160.19,14.9838508]
[1746723187698,148.1694629,160.22,160.14,32.3697]
[1746723187917,133.1856121,160.22,160.18,23.95642234]
[1746723190215,133.1856121,160.22,160.19,23.95642234]
[1746723191216,133.1856121,160.22,160.2,23.95642234]
[1746723192218,133.1856121,160.22,160.16,23.95642234]
[1746723192518,133.1856121,160.22,160.2,23.95642234]
[1746723194024,133.1856121,160.22,160.21,23.95642234]
[1746723196094,157.14203444,160.28,160.21,23.95642234]
[1746723196295,133.1856121,160.27,160.23,23.95642234]
[1746723196839,133.1856121,160.27,160.25,23.95642234]
[1746723197020,133.1856121,160.27,160.2,84.0406]
[1746723197200,1.6317,160.31,160.26,23.95642234]
[1746723197201,134.8173121,160.31,160.26,23.95642234]
[1746723197403,133.1856121,160.31,160.27,23.95642234]
[1746723197603,157.14203444,160.31,160.25,26.0]
[1746723197804,157.14203444,160.31,160.26,23.95642234]
[1746723198614,23.95642234,160.3,160.25,23.95642234]
[1746723198819,23.95642234,160.3,160.24,6.24063904]
[1746723199419,23.95642234,160.3,160.25,23.95642234]
[1746723199906,30.19477462,160.3,160.25,23.95642234]
[1746723201020,6.23835228,160.3,160.25,30.1966536]
[1746723201195,30.19477462,160.3,160.25,30.1966536]
[1746723201701,133.1856121,160.31,160.28,23.95642234]
[1746723202014,163.37996753,160.31,160.26,23.95642234]
[1746723202520,163.37996753,160.31,160.26,30.19623596]
[1746723202714,157.14203444,160.31,160.26,30.19623596]
[1746723203098,163.38013037,160.31,160.26,30.19623596]
[1746723204698,30.19451827,160.31,160.26,30.19623596]
[1746723205326,23.95642234,160.3,160.23,26.0]
[1746723205622,23.95642234,160.28,160.23,30.19734499]
[1746723205808,23.95642234,160.29,160.24,23.95642234]
[1746723206723,6.23855685,160.3,160.24,30.19680823]
[1746723206904,30.19497919,160.3,160.25,23.95642234]
[1746723207631,23.95642234,160.29,160.25,23.95642234]
[1746723209328,30.19525126,160.29,160.25,23.95642234]
[1746723209915,21.1974401,160.29,160.25,14.95861118]
[1746723210306,21.1974401,160.29,160.22,6.24141805]
[1746723210507,21.1974401,160.29,160.25,14.95861118]
[1746723210805,21.1974401,160.29,160.22,6.24141805]
[1746723211011,21.1974401,160.29,160.24,14.95861118]
[1746723211209,6.23882892,160.29,160.24,14.95861118]
[1746723211732,21.1974401,160.29,160.24,14.95861118]
[1746723212638,14.95861118,160.25,160.21,26.0]
[1746723213213,14.95861118,160.25,160.2,14.95861118]
[1746723213413,14.95861118,160.24,160.19,21.20103826]
[1746723214539,21.19948242,160.24,160.19,14.95861118]
[1746723214909,14.95861118,160.23,160.18,14.95861118]
[1746723215817,14.95861118,160.23,160.18,21.20157433]
[1746723216230,14.95861118,160.23,160.18,14.95861118]
[1746723216422,21.19948242,160.24,160.19,14.95861118]
[1746723217339,21.19948242,160.24,160.19,21.20117457]
[1746723218340,21.19948242,160.24,160.19,14.95861118]
[1746723218636,21.19948242,160.24,160.19,21.20113052]
[1746723222845,18.64964886,160.26,160.2,14.95861118]
[1746723223048,14.95861118,160.25,160.2,14.95861118]
[1746723223244,14.95861118,160.24,160.19,21.20113052]
[1746723224939,6.24058235,160.25,160.19,21.20113052]
[1746723225132,14.95861118,160.24,160.19,21.20113052]
[1746723225340,14.95861118,160.24,160.19,6.24251934]
[1746723225541,14.95861118,160.24,160.19,21.20113052]
[1746723226643,21.19942276,160.24,160.19,21.20113052]
[1746723227843,21.19942276,160.24,160.19,14.95861118]
[1746723228745,14.95861118,160.2,160.15,26.0]
[1746723229042,18.64964886,160.22,160.16,14.95861118]
[1746723229249,14.95861118,160.2,160.16,14.95861118]
[1746723229924,21.20083289,160.2,160.16,14.95861118]
[1746723230126,14.95861118,160.2,160.16,14.95861118]
[1746723230335,14.95861118,160.2,160.16,21.20231239]
[1746723231860,21.20046811,160.21,160.16,21.20231239]
[1746723233128,14.95861118,160.19,160.15,21.20260351]
[1746723233334,14.95861118,160.19,160.15,6.24399233]
[1746723233535,14.95861118,160.19,160.15,21.20260351]
[1746723235337,21.20086462,160.2,160.15,21.20260351]
[1746723236052,14.95861118,160.2,160.15,21.20260351]
[1746723236634,21.20091994,160.2,160.15,21.20260351]
[1746723236831,14.95861118,160.19,160.12,1.5591]
[1746723237161,14.95861118,160.18,160.14,14.95861118]
[1746723237651,14.95861118,160.18,160.13,14.95861118]
[1746723238253,21.20166517,160.18,160.13,21.20347875]
[1746723240650,21.20166517,160.18,160.14,14.95861118]
[1746723242652,21.20166517,160.18,160.13,14.95861118]
[1746723242974,21.20166517,160.18,160.08,32.89067275]
[1746723242975,14.95861118,160.15,160.08,1.6499]
[1746723243279,24.89270285,160.18,160.08,1.6499]
[1746723243280,1.5978,160.16,160.12,14.95861118]
[1746723243436,1.5978,160.2,160.14,14.95861118]
[1746723243640,14.95861118,160.19,160.14,14.95861118]
[1746723243954,22.7986934,160.2,160.15,14.95861118]
[1746723244155,16.55641118,160.2,160.16,14.95861118]
[1746723244372,14.95861118,160.2,160.16,14.95861118]
[1746723244847,34.74964886,160.22,160.15,6.243901]
[1746723244848,40.99118167,160.22,160.17,14.95861118]
[1746723245166,14.95861118,160.21,160.16,14.95861118]
[1746723246179,6.24219725,160.2,160.16,14.95861118]
[1746723246472,21.20080843,160.2,160.16,14.95861118]
[1746723246682,21.20080843,160.2,160.15,14.95861118]
[1746723247761,14.95861118,160.19,160.15,14.95861118]
[1746723247962,14.95861118,160.19,160.14,14.95861118]
[1746723248479,6.24297665,160.18,160.14,14.95861118]
[1746723249580,24.89145648,160.21,160.16,14.95861118]
[1746723249770,14.95861118,160.2,160.16,14.95861118]
[1746723249968,14.95861118,160.2,160.15,14.95861118]
[1746723250783,6.24258692,160.19,160.15,14.95861118]
[1746723252184,21.20095115,160.2,160.15,14.95861118]
[1746723253573,6.24204997,160.21,160.16,14.95861118]
[1746723253885,21.20066115,160.21,160.16,14.95861118]
[1746723254088,6.24204997,160.21,160.17,14.95861118]
[1746723254386,22.34145825,160.22,160.18,14.95861118]
[1746723254763,37.30006943,160.22,160.17,14.95861118]
[1746723256167,14.95861118,160.21,160.16,14.95861118]
[1746723256369,14.95861118,160.21,160.15,6.24400054]
[1746723256575,18.64964886,160.27,160.16,1.6255]
[1746723256902,44.64964886,160.27,160.19,14.95861118]
[1746723257086,14.95861118,160.24,160.19,14.95861118]
[1746723257298,6.24102852,160.23,160.19,14.95861118]
[1746723257578,21.1996397,160.23,160.18,14.95861118]
[1746723258268,21.1996397,160.23,160.18,21.20134256]
[1746723258474,21.1996397,160.23,160.19,14.95861118]
[1746723258475,6.24102852,160.23,160.19,14.95861118]
[1746723259078,21.1996397,160.23,160.18,6.24294874]
[1746723259281,14.95861118,160.21,160.13,6.24492599]
[1746723259475,14.95861118,160.21,160.16,14.95861118]
[1746723261088,6.24219725,160.2,160.16,14.95861118]
[1746723261870,6.24219725,160.2,160.17,14.95861118]
[1746723262076,6.24219725,160.2,160.16,14.95861118]
[1746723262586,21.20080843,160.2,160.13,6.24477294]
[1746723262779,21.20080843,160.2,160.15,14.95861118]
[1746723263187,21.20080843,160.2,160.16,14.95861118]
[1746723263381,6.24219725,160.2,160.16,14.95861118]
[1746723265605,6.24141805,160.22,160.18,14.95861118]
[1746723265894,21.20002923,160.22,160.17,14.95861118]
[1746723266078,14.95861118,160.21,160.12,77.5771]
[1746723266590,14.95861118,160.21,160.16,14.95861118]
[1746723266993,21.20002923,160.22,160.17,14.95861118]
[1746723267467,6.24141805,160.22,160.18,14.95861118]
[1746723267667,14.95861118,160.23,160.18,14.95861118]
[1746723267668,21.1996397,160.23,160.18,14.95861118]
[1746723267884,21.1996397,160.23,160.17,6.2432134]
[1746723268092,21.1996397,160.23,160.18,14.95861118]
[1746723268495,6.24102852,160.23,160.19,14.95861118]
[1746723268978,6.24102852,160.23,160.14,71.8558761]
[1746723269176,6.24102852,160.23,160.19,14.95861118]
[1746723269589,57.05861118,160.24,160.2,14.95861118]
[1746723269590,48.34073578,160.24,160.2,14.95861118]
[1746723270192,18.64964886,160.26,160.23,14.95861118]
[1746723270496,39.84812026,160.26,160.21,14.95861118]
[1746723271290,14.95861118,160.25,160.21,14.95861118]
[1746723271796,21.19916232,160.25,160.21,14.95861118]
[1746723272201,6.24055114,160.25,160.21,14.95861118]
[1746723272404,6.24055114,160.25,160.22,14.95861118]
[1746723273213,6.24055114,160.25,160.18,6.24297665]
[1746723273214,21.19916232,160.25,160.18,6.24297665]
[1746723273397,21.19916232,160.25,160.2,14.95861118]
[1746723273887,6.24055114,160.25,160.21,14.95861118]
[1746723277210,21.19916232,160.25,160.2,14.95861118]
[1746723277581,6.24055114,160.25,160.21,14.95861118]
[1746723277904,21.19862174,160.26,160.21,14.95861118]
[1746723278301,21.19862174,160.26,160.22,14.95861118]
[1746723279492,21.19862174,160.26,160.2,6.24203926]
[1746723279692,6.23957943,160.27,160.23,14.95861118]
[1746723280304,21.19819061,160.27,160.23,14.95861118]
[1746723282196,21.19819061,160.27,160.22,14.95861118]
[1746723284913,21.19819061,160.27,160.23,14.95861118]
[1746723286011,6.23957943,160.27,160.23,14.95861118]
[1746723286219,21.19819061,160.27,160.23,14.95861118]
[1746723287988,6.23957943,160.27,160.19,6.24258692]
[1746723288205,6.23957943,160.27,160.22,14.95861118]
[1746723288392,6.23957943,160.27,160.23,14.95861118]
[1746723288597,21.19819061,160.27,160.22,14.95861118]
[1746723289089,6.23957943,160.27,160.22,14.95861118]
[1746723289427,14.95861118,160.26,160.19,6.24258692]
[1746723289712,9.57720888,160.26,160.22,9.57720888]
[1746723290107,6.2402496,160.25,160.22,9.57720888]
[1746723292003,15.81745848,160.25,160.2,9.57720888]
[1746723292406,9.57720888,160.21,160.15,7.48632414]
[1746723292616,18.64964886,160.24,160.16,9.57720888]
[1746723292791,9.57720888,160.21,160.16,9.57720888]
[1746723292994,18.64964886,160.24,160.16,9.57720888]
[1746723293195,9.57720888,160.21,160.16,9.57720888]
[1746723293718,6.24219725,160.2,160.15,6.24390558]
[1746723294021,6.24219725,160.2,160.16,14.97407179]
[1746723294203,21.21626904,160.2,160.14,32.24441939]
[1746723294410,6.24219725,160.2,160.16,14.97407179]
[1746723296723,157.61626904,160.2,160.15,14.97407179]
[1746723297034,157.61626904,160.2,160.16,14.97407179]
[1746723298433,157.61626904,160.2,160.14,32.2444763]
[1746723298627,157.61626904,160.2,160.16,14.97407179]
[1746723298933,142.64219725,160.2,160.16,14.97407179]
[1746723299337,157.61626904,160.2,160.16,14.97407179]
[1746723299713,142.64219725,160.2,160.17,14.97407179]
[1746723302127,136.4,160.2,160.17,14.97407179]
[1746723302335,136.4,160.2,160.18,14.97407179]
[1746723305032,136.4,160.2,160.18,21.21696299]
[1746723305221,136.4,160.2,160.19,14.97407179]
[1746723307011,6.24063904,160.24,160.19,14.97407179]
[1746723307318,157.61471083,160.24,160.2,14.97407179]
[1746723307520,157.61471083,160.24,160.19,14.97407179]
[1746723308516,14.97407179,160.22,160.15,6.24414611]
[1746723308717,151.37407179,160.23,160.18,14.97407179]
[1746723309740,6.24141805,160.22,160.18,14.97407179]
[1746723313941,6.24141805,160.22,160.18,9.58106413]
[1746723314126,6.24141805,160.22,160.19,9.58106413]
[1746723314725,15.82248218,160.22,160.15,6.24414611]
[1746723315026,9.58106413,160.2,160.15,9.58106413]
[1746723315232,145.98106413,160.21,160.16,9.58106413]
[1746723315434,145.98106413,160.21,160.14,32.24440067]
[1746723315942,145.98106413,160.21,160.16,9.58106413]
[1746723316127,15.82326138,160.2,160.16,9.58106413]
[1746723316324,15.82326138,160.2,160.14,26.0]
[1746723316528,9.58106413,160.17,160.09,81.61002414]
[1746723316730,9.58106413,160.17,160.12,9.58106413]
[1746723317337,9.58106413,160.17,160.13,9.58106413]
[1746723317721,15.82461877,160.17,160.13,9.58106413]
[1746723318433,6.24355464,160.17,160.13,9.58106413]
[1746723319142,152.22417954,160.18,160.13,9.58106413]
[1746723319446,136.4,160.18,160.15,9.58106413]
[1746723319639,136.4,160.18,160.16,9.58106413]
[1746723319840,136.4,160.18,160.16,14.975367]
[1746723320347,136.4,160.18,160.15,14.975367]
[1746723322047,136.4,160.18,160.11,21.85997126]
[1746723322246,136.4,160.18,160.15,14.975367]
[1746723322449,136.4,160.18,160.11,21.85997126]
[1746723322753,14.975367,160.17,160.13,14.975367]
[1746723323424,157.61837722,160.18,160.13,14.975367]
[1746723323846,14.975367,160.17,160.12,14.975367]
[1746723324141,142.64301022,160.18,160.13,14.975367]